Cogmind - Beta 16 @@@ ROGUE MODE // 2025.11.04 @ 21:21:27 Player: Playing with my Cog Result: Destroyed by D-53 Grenadier with Mini Grenade Launcher Performance ------------- Evolutions (0) 0 Regions Visited (2) 400 Robots Destroyed (22) 110 Value Destroyed (390) 390 Prototype IDs (0) 0 Alien Tech Used (0) 0 Bonus (0) 0 TOTAL SCORE: 900 Bonus ------- None Cogmind --------- Core Integrity 0/250 Matter 50/300 Energy 80/250 System Corruption 5% Temperature Cool (0) Movement Walking (120) Location -10/Mines Parts ------- > --- POWER (1) -------- Ion Engine > --- PROPULSION (2) --- Aluminum Leg Aluminum Leg > --- UTILITY (2) ------ Small Storage Unit Utility Shielding > --- WEAPON (2) ------- Small Laser > --- INVENTORY (8) ---- Flight Unit Flight Unit Hacking Suite Light Assault Rifle Peak State ------------ > --- POWER ------------ Ion Engine > --- PROPULSION ------- Aluminum Leg Aluminum Leg > --- UTILITY ---------- Small Storage Unit Utility Shielding > --- WEAPON ----------- Small Laser Rocket Launcher > --- INVENTORY -------- Ion Engine Aluminum Leg Aluminum Leg Flight Unit Flight Unit Hacking Suite Small Laser Light Assault Rifle [Rating: 9] Favorites ----------- Power Ion Engine Engine Ion Engine Propulsion Aluminum Leg Treads Light Treads Leg Aluminum Leg Utility Small Storage Unit Storage Small Storage Unit Protection Utility Shielding Weapon Light Assault Rifle Energy Gun EM Pulse Gun Ballistic Gun Light Assault Rifle Launcher Rocket Launcher Build | -11 -10 -10 ------- Run | Yrd Mat Min Slots Evolved . | . . . Power . | . . . Propulsion . | . . . Utility . | . . . Weapon . | . . . Parts Attached 18 | 6 7 5 Power 2 | 1 . 1 Engine 2 | 1 . 1 Core . | . . . Reactor . | . . . Propulsion 8 | 2 4 2 Treads 2 | 2 . . Leg 6 | . 4 2 Wheel . | . . . Hover . | . . . Flight . | . . . Utility 2 | 1 1 . Device . | . . . Storage 1 | 1 . . Processor . | . . . Hackware . | . . . Protection 1 | . 1 . Artifact . | . . . Weapon 6 | 2 2 2 Energy Gun 3 | 1 1 1 Energy Cannon . | . . . Ballistic Gun 1 | 1 . . Ballistic Cannon . | . . . Launcher 2 | . 1 1 Special Weapon . | . . . Impact Weapon . | . . . Slashing Weapon . | . . . Piercing Weapon . | . . . Special Melee Weapon . | . . . Unidentified Prototypes . | . . . Parts Lost 6 | . 1 5 Power 1 | . . 1 Propulsion 2 | . . 2 Utility . | . . . Weapon 3 | . 1 2 Highest Loss Streak 5 | . 1 5 To Critical Strikes . | . . . Average Backups 6 | 3 6 8 Power . | . 1 1 Propulsion 3 | 1 3 4 Utility . | . . 1 Weapon 1 | . 1 2 Tool/Special . | . . . Unused Backups 4 | . 1 3 Power . | . . . Propulsion 3 | . 1 2 Utility 1 | . . 1 Weapon . | . . . Tool/Special . | . . . Average Slot Usage (%) 90 | . 87 97 Engine 14 | . 14 14 Leg 27 | . 27 26 Storage 14 | . 14 14 Protection 5 | . 2 14 Energy Gun 13 | . 14 13 Ballistic Gun 10 | . 13 1 Launcher 3 | . . 12 Peak Build Rating 9 | 6 8 9 Average Rating 6 | 4 6 8 On Entrance 4 | . 6 8 Avg Prop Armor Cover (%) . | . . . Naked Turns . | . . . Heaviest Build 16 | 13 13 16 Greatest Support 40 | 40 20 20 Greatest Overweight (x) . | . . . Average Overweight (x) . | . . . Largest Inventory Capacity 8 | 8 8 8 Average Capacity 7 | 7 8 8 Most Carried 8 | 4 8 8 Average Carried 6 | 3 6 7 Final Capacity 8 | 8 8 8 Final Carried 8 | 4 8 4 Class Distribution -------------------- 100% | Mutant Dominant Class ---------------- Mutant | -10/Materials Mutant | -10/Mines Resources | -11 -10 -10 ----------- Run | Yrd Mat Min Matter Collected 443 | 239 181 23 Remotely . | . . . Salvage Created 400 | . 341 59 Parts 39 | . 34 5 Haulers Intercepted . | . . . Recyclers Shooed 2 | . 1 1 Parts Field Recycled . | . . . Retrieved Matter . | . . . Parts Self-Destructed . | . . . Prevented . | . . . Parts Restored . | . . . Kills | -11 -10 -10 ------- Run | Yrd Mat Min Combat Hostiles Destroyed 25 | . 11 14 Guns 5 | . 5 . AOE 20 | . 6 14 Classes Destroyed 10 | . 7 3 Worker 1 | . 1 . Builder 1 | . 1 . Tunneler 1 | . 1 . Recycler 1 | . . 1 Operator 1 | . 1 . Watcher 2 | . 2 . Swarmer 9 | . 6 3 Grunt 5 | . 5 . Demolisher 1 | . . 1 Assembled 10 | . . 10 Best Kill Streak 10 | . 5 10 Combat Bots Only 10 | . 4 10 Max Kills in Single Turn 4 | . 4 3 Gunslinging . | . . . Exploded 3 | . 3 3 Melee . | . . . Uniques/NPCs Destroyed . | . . . Combat | -11 -10 -10 -------- Run | Yrd Mat Min Hostile Shots Fired 54 | . 31 23 Missed 13 | . 8 5 Hits 41 | . 23 18 Projectile 41 | . 23 18 AOE 12 | . . 12 Damage Taken 918 | . 327 591 Core 261 | . 73 188 Absorbed by Shields . | . . . Redirected to Shielding 14 | . . 14 Core Remaining (%) 100 | 100 . . Volleys Fired 54 | . 36 18 Largest 2 | . 2 1 Hottest 60 | . 60 33 Shots Fired 88 | . 69 19 Gun 67 | . 66 1 Cannon . | . . . Launcher 21 | . 3 18 Special . | . . . Kinetic 33 | . 33 . Thermal 7 | . 6 1 Explosive 21 | . 3 18 Electromagnetic 27 | . 27 . Robot Hit Streak 12 | . 12 5 Robot Miss Streak 8 | . 8 2 Penetration Max . | . . . Secondary Targets . | . . . Shots Hit Robots 46 | . 36 10 Core Hits 50 | . 24 26 Critical Kills . | . . . Critical Parts Destroyed . | . . . Critical Strikes . | . . . Melee Attacks . | . . . Impact . | . . . Slashing . | . . . Piercing . | . . . Sneak Attacks . | . . . Combat Hostiles . | . . . Follow-up Attacks . | . . . Damage Inflicted 1733 | . 747 986 Guns 364 | . 364 . Cannons . | . . . Explosions 1369 | . 383 986 Melee . | . . . Ramming . | . . . Kinetic 161 | . 161 . Thermal 20 | . 20 . Explosive 1369 | . 383 986 Electromagnetic 183 | . 183 . Impact . | . . . Slashing . | . . . Piercing . | . . . Highest Corruption 5 | . 5 5 Average Corruption 4 | . 4 5 Corruption Purged . | . . . Corruption Blocked . | . . . Effects 17 | . 12 5 Message Errors 3 | . 2 1 Matter Fused 4 | . 4 . Heat Flow Errors 4 | . 3 1 Energy Discharges 2 | . 1 1 Parts Rejected 1 | . 1 . Parts Fused 1 | . . 1 Data Loss (minor) 1 | . 1 . Misfires 1 | . . 1 Overload Shots . | . . . Overflow Damage 99 | . 40 59 Projectiles . | . . . Explosions 99 | . 40 59 Melee . | . . . Knockbacks . | . . . Impact . | . . . Kinetic . | . . . Secondary . | . . . Self-Inflicted Damage 82 | . 41 41 Shots 4 | . 2 2 Rammed . | . . . Targets Rammed . | . . . Kicked . | . . . Crushed . | . . . Highest Temperature 248 | . 194 248 Average Temperature 54 | . 46 110 Received Heat Transfer 114 | . 114 . Siege Activations . | . . . Martial Activations . | . . . Shielding Activations . | . . . Robots Disrupted . | . . . Combat Hostiles . | . . . Robots Corrupted 1 | . 1 . Combat Hostiles . | . . . Parts Fried 3 | . 3 . Impact Corruptions . | . . . Robots Melted . | . . . Combat Hostiles . | . . . Parts Melted . | . . . Heat Transferred 50 | . 50 . Parts Sabotaged . | . . . Parts Stolen . | . . . Parts Stripped . | . . . Power Chain Reactions . | . . . Alert | -11 -10 -10 ------- Run | Yrd Mat Min Maximum Alert Level . | . . . Low Security (%) 100 | 100 100 100 Level 1 . | . . . Level 2 . | . . . Level 3 . | . . . Level 4 . | . . . Level 5 . | . . . High Security . | . . . Max Security . | . . . Peak Influence 155 | . 155 132 Initial 51 | . . 51 Average 44 | . 33 87 Influence Increases 489 | . 314 175 Destroy 0b10 Robot/C 300 | . 220 80 Destroy 0b10 Robot/NC 35 | . 30 5 Destroy Leader 54 | . 34 20 Successful Hack 12 | . 12 . Disable Machine 15 | . . 15 Destroy Structure 73 | . 18 55 Influence Decreases 423 | . 183 240 Entered New Map 80 | . . 80 Time Decay 283 | . 173 110 Lost Part 60 | . 10 50 Squads Dispatched 1 | . 1 . Investigation . | . . . Extermination . | . . . Reinforcement 1 | . 1 . Assault . | . . . Garrison . | . . . Intercept . | . . . Searches Triggered . | . . . Construction Impeded . | . . . Haulers Reinforced . | . . . Active Scanning Responses . | . . . Cargo Convoy Interrupts . | . . . Stealth | -11 -10 -10 --------- Run | Yrd Mat Min Distress Signals 2 | . 2 . Communications Jammed . | . . . Distress Signals . | . . . Times Spotted 35 | . 20 15 Peak Tracking Total 8 | . 4 8 Tactical Retreats . | . . . Traps | -11 -10 -10 ------- Run | Yrd Mat Min Traps Triggered 5 | . 5 . Indirectly . | . . . Trap Hack Attempts . | . . . Triggered . | . . . Disarmed . | . . . Reprogrammed . | . . . Reused . | . . . Traps Extracted . | . . . Installed . | . . . Triggered . | . . . Machines | -11 -10 -10 ---------- Run | Yrd Mat Min Machines Disabled 1 | . . 1 Max in Single Turn 1 | . . 1 Machines Repaired . | . . . Machines Dismantled . | . . . Machines Sabotaged . | . . . Overloaded Fab Kills . | . . . Hacking | -11 -10 -10 --------- Run | Yrd Mat Min Machines Accessed 4 | . 4 . Terminals 4 | . 4 . Fabricators . | . . . Repair Stations . | . . . Recycling Units . | . . . Scanalyzers . | . . . Garrison Access . | . . . Total Hacks 12 | . 12 . Successful 2 | . 2 . Failed 10 | . 10 . Catastrophic 1 | . 1 . Database Lockouts . | . . . Manual 7 | . 7 . Terminals 12 | . 12 . Fabricators . | . . . Repair Stations . | . . . Recycling Units . | . . . Scanalyzers . | . . . Garrison Access . | . . . Terminal Hacks 1 | . 1 . Terminal Index 1 | . 1 . Fabricator Hacks . | . . . Repair Station Hacks . | . . . Recycling Unit Hacks . | . . . Scanalyzer . | . . . Garrison Access Hacks . | . . . Unauthorized Hacks 1 | . 1 . Terminals 1 | . 1 . Operators 1 | . 1 . Fabricators . | . . . Repair Stations . | . . . Recycling Units . | . . . Scanalyzers . | . . . Garrison Access . | . . . Data Cores Recovered . | . . . Used . | . . . Hacking Detections 4 | . 4 . Full Trace Events 1 | . 1 . Feedback Events . | . . . Feedback Blocked . | . . . Robot Schematics Acquired . | . . . Robots Built . | . . . Authchips . | . . . Time . | . . . Total Robot Build Rating . | . . . Part Schematics Acquired . | . . . Parts Built . | . . . Authchips . | . . . Time . | . . . Total Part Build Rating . | . . . Part Studies Acquired . | . . . Parts Repaired . | . . . Time . | . . . Parts Recycled . | . . . Recycled Matter . | . . . Retrieved Matter . | . . . Retrieved Components . | . . . Parts Scanalyzed . | . . . Part Schematics Acquired . | . . . Parts Damaged . | . . . Bothacking | -11 -10 -10 ------------ Run | Yrd Mat Min Used RIF Installer . | . . . Robots Hacked . | . . . Non-combat . | . . . Combat . | . . . Robot Hacks Applied . | . . . Relay Couplers Released . | . . . Fabnet Peak Effective % . | . . . Robots Rewired . | . . . Allies Hacked . | . . . Hacks Repelled . | . . . Allies | -11 -10 -10 -------- Run | Yrd Mat Min Total Allies . | . . . Largest Group . | . . . Highest-Rated Group . | . . . Highest-Rated Ally . | . . . Total Orders . | . . . Ally Attacks . | . . . Total Damage . | . . . Kills . | . . . Allies Corrupted . | . . . Allies Melted . | . . . Intel | -11 -10 -10 ------- Run | Yrd Mat Min Active Infowar (turns) . | . . . Robot Analysis Total . | . . . Derelict Logs Recovered 1 | . . 1 Drone Launches . | . . . Drone Recoveries . | . . . Exploration | -11 -10 -10 ------------- Run | Yrd Mat Min Turns Passed 944 | 78 629 237 Spaces Moved 611 | 45 405 161 Core 6 | 6 . . Treads 39 | 39 . . Legs 566 | . 405 161 Wheels . | . . . Hover . | . . . Flight . | . . . Fastest Speed 50 | 50 120 120 Average Speed 121 | 145 120 120 Slowest Speed 160 | 160 120 120 Overloaded Moves . | . . . Propulsion Burnouts . | . . . Robots Hopped . | . . . Potential Cave-ins . | . . . Cave-ins Triggered . | . . . Exploration Rate (%) 36 | 3 53 53 Regions Visited 2 Branch Regions 1 Pre-discovered Areas . | . . . Known Exits Taken . | . . . Unknown Exits Taken 2 | 1 1 . Scrap Searched . | . . . Spaces Dug 4 | . 4 . Terrain Destroyed 94 | . 17 77 Melee . | . . . Projectile . | . . . AOE 94 | . 17 77 Terrain Rammed . | . . . Walls Destroyed . | . . . Machines Disabled . | . . . Actions | -11 -10 -10 --------- Run | Yrd Mat Min Total 726 | 55 485 186 Wait 19 | . 19 . Move 609 | 44 404 161 Hop . | . . . Pick Up 14 | 5 9 . Fast Attach 8 | 5 2 1 Attach 6 | 1 1 4 Detach . | . . . Swap 9 | . 8 1 Drop 7 | . 6 1 Fire 54 | . 36 18 Melee . | . . . Ram . | . . . Kick . | . . . Crush . | . . . Escape Stasis . | . . . Rewire . | . . . Trap . | . . . Miscellaneous . | . . . Route ------- -11/Scrapyard -10/Materials (discovered 3 exits: [*Mat x2] / [*Min]) -10/Mines (discovered 1 exit: [*Sub]) History --------- Turn | Location | Event 3 | -11/Scrapyard | Discovered new exit (range 16) 79 | -11/Scrapyard | Entered Materials 176 | -10/Materials | Discovered new exit (range 16) 311 | -10/Materials | Build established: Mutant 533 | -10/Materials | Discovered new exit (range 15) 676 | -10/Materials | Discovered new exit (range 12) 708 | -10/Materials | Entered Mines 731 | -10/Mines | Learned Materials security intel 756 | -10/Mines | Received a Rocket Launcher from a helpful Derelict 841 | -10/Mines | Assembled infested the area 916 | -10/Mines | Discovered new exit (range 7) 922 | -10/Mines | Destroyed 10 combat bots 930 | -10/Mines | Core integrity fell below 50% 932 | -10/Mines | Core integrity fell below 20% 945 | -10/Mines | Destroyed by D-53 Grenadier with Mini Grenade Launcher Last Messages --------------- 00891_ The unstable cave ceiling collapses. 00898_ OHW5G :7NIY 00937_ Aluminum Leg destroyed. 00940_ The unstable cave ceiling collapses. 00942_ R-06 Scavenger destroyed. 00943_ The unstable cave ceiling collapses. 00943_ Rocket Launcher destroyed. Map ----- +----------------------------------------------------+ | | | | | | | | | | | | | | | | | | | | | | | | | ?????????????????????????????????????????????????? | | ?????????????????????????????????????????????????? | | ?????????????????????????????????????????????????? | | ###?????????????????????????#####????????????????? | | ##??????????????????####### ##???????????????? | | #???????????######## ##